[Event "RUS-ch Blitz Women 2018"]
[Site "Sochi"]
[Date "2018.10.07"]
[Round "12"]
[White "Maletina, Tatiana"]
[Black "Shafigullina, Zarina"]
[Result "1-0"]
[ECO "A40"]
[WhiteElo "2270"]
[BlackElo "2150"]
[Annotator "NA"]
[PlyCount "160"]
[EventDate "2018.10.07"]
[EventType "swiss"]
[EventCountry "RUS"]
[SourceTitle "playchess.com"]
[Source "ChessBase"]
[SourceQuality "1"]
[TimeControl "180+2"]

1. d4 {[%emt 0:00:00]} Nf6 {[%emt 0:00:00]} 2. c4 {[%emt 0:00:00]} e6 {[%emt 0:00:00]} 3. g3 {[%emt 0:00:01]} d5 {[%emt 0:00:10]} 4. Nf3 {[%emt 0:00:02]} b6 {[%emt 0:00:03]} 5. cxd5 {[%emt 0:00:11]} exd5 {[%emt 0:00:02]} 6. Bg2 {[%emt 0:00:02]} Be7 {[%emt 0:00:04]} 7. O-O {[%emt 0:00:02]} O-O {[%emt 0:00:01]} 8. Nc3 {[%emt 0:00:01]} c6 {[%emt 0:00:03] E06: Katalanisch} (8... Bb7 9. Qc2 Na6 10. Rd1 Nb4 11. Qb1 Re8 12. a3 Na6 13. b4 c6 14. Qb3 Nc7 15. a4 Bd6 16. Bg5 h6 17. Bxf6 Qxf6 18. e3 {0-1 (34) Gritsak,O (2469)-Golubka,P (2484) Bad Homburg 2018}) 9. Ne5 {[%emt 0:00:12]} Bf5 {[%emt 0:00:05]} 10. h3 $146 {[%emt 0:00:03]} ({Vorgänger:} 10. Bf4 b5 11. Rc1 Qb6 12. Re1 Rc8 13. e4 dxe4 14. Nxe4 Nxe4 15. Bxe4 Bxe4 16. Rxe4 Bf6 17. Nxf7 Kxf7 18. Qh5+ g6 19. Qxh7+ Bg7 20. Re7+ Kxe7 21. Qxg7+ Ke6 22. Qxg6+ {1-0 (22) Choma,E (2383)-Chemin,V (2133) Curitiba 2016}) 10... Nfd7 {[%emt 0:00:01]} 11. Nd3 {[%emt 0:00:03]} Bf6 {[%emt 0:00:05]} 12. Be3 {[%emt 0:00:05]} Na6 {[%emt 0:00:11]} 13. g4 {[%emt 0:00:01]} Bg6 {[%emt 0:00:33]} 14. f4 {[%emt 0:00:03]} h5 {[%emt 0:00:13]} 15. g5 {[%emt 0:00:09]} Be7 {[%emt 0:00:04]} 16. f5 {[%emt 0:00:01]} Bh7 {[%emt 0:00:09]} 17. h4 {[%emt 0:00:01]} Nc7 {[%emt 0:00:04]} 18. Bf2 {[%emt 0:00:20]} Bxf5 {[%emt 0:00:18]} 19. Nf4 {[%emt 0:00:02]} g6 {[%emt 0:00:04]} 20. Bg3 {[%emt 0:00:08]} Ne6 {[%emt 0:00:05]} 21. Nxh5 {[%emt 0:00:02]} Nxd4 {[%emt 0:00:05]} 22. Nf4 {[%emt 0:00:26]} Ne6 {[%emt 0:00:12]} 23. Nd3 {[%emt 0:00:01]} Nec5 {[%emt 0:00:08]} 24. Nf2 {[%emt 0:00:12]} Nb8 {[%emt 0:00:22]} 25. e4 {[%emt 0:00:08]} dxe4 {[%emt 0:00:03]} 26. Nfxe4 {[%emt 0:00:02]} Nxe4 {[%emt 0:00:04]} 27. Nxe4 {[%emt 0:00:01]} Qxd1 {[%emt 0:00:21]} 28. Raxd1 {[%emt 0:00:01]} Nd7 {[%emt 0:00:00]} 29. Nd6 {[%emt 0:00:07]} Bxd6 {[%emt 0:00:19]} 30. Rxd6 {[%emt 0:00:01]} Nc5 {[%emt 0:00:03]} 31. Bxc6 {[%emt 0:00:08]} Rad8 {[%emt 0:00:01]} 32. Rfd1 {[%emt 0:00:04]} Rxd6 {[%emt 0:00:02]} 33. Rxd6 {[%emt 0:00:04]} Ne4 {[%emt 0:00:00]} 34. Bxe4 {[%emt 0:00:02]} Bxe4 {[%emt 0:00:01]} 35. Rd7 {[%emt 0:00:02]} a6 {[%emt 0:00:02]} 36. Be5 {[%emt 0:00:01]} Bf5 {[%emt 0:00:05]} 37. Ra7 {[%emt 0:00:05]} Bd3 {[%emt 0:00:01]} 38. Kf2 {[%emt 0:00:02]} Re8 {[%emt 0:00:05]} 39. Bf6 {[%emt 0:00:04]} Rc8 {[%emt 0:00:05]} 40. Ke3 {[%emt 0:00:03]} Bb5 {[%emt 0:00:01]} 41. Rb7 {[%emt 0:00:02]} Re8+ {[%emt 0:00:03]} 42. Kd4 {[%emt 0:00:02]} Bc6 {[%emt 0:00:01]} 43. Rxb6 {[%emt 0:00:02]} Bb5 {[%emt 0:00:00]} 44. Rb7 {[%emt 0:00:04]} Bf1 {[%emt 0:00:02]} 45. b4 {[%emt 0:00:04]} Bb5 {[%emt 0:00:02]} 46. Kc5 {[%emt 0:00:06]} Rc8+ {[%emt 0:00:01]} 47. Kd6 {[%emt 0:00:01]} Rc6+ {[%emt 0:00:01]} 48. Kd5 {[%emt 0:00:06]} Rc8 {[%emt 0:00:02]} 49. Ra7 {[%emt 0:00:07]} Bc4+ {[%emt 0:00:02]} 50. Kd4 {[%emt 0:00:03]} Bxa2 {[%emt 0:00:01]} 51. Rxa6 {[%emt 0:00:01]} Be6 52. Ra7 {[%emt 0:00:05]} Rc4+ {[%emt 0:00:05]} 53. Kd3 {[%emt 0:00:03]} Rc8 {[%emt 0:00:03]} 54. Kd2 {[%emt 0:00:03]} Bc4 {[%emt 0:00:03]} 55. Rb7 {[%emt 0:00:05]} Bd5 {[%emt 0:00:02]} 56. Rd7 {[%emt 0:00:02]} Be6 {[%emt 0:00:00]} 57. Re7 {[%emt 0:00:03]} Bd5 {[%emt 0:00:01]} 58. b5 {[%emt 0:00:02]} Rb8 {[%emt 0:00:06]} 59. b6 {[%emt 0:00:01]} Be6 {[%emt 0:00:05]} 60. Kc3 {[%emt 0:00:07]} Bd5 {[%emt 0:00:01]} 61. Kd4 {[%emt 0:00:02]} Bf3 {[%emt 0:00:02]} 62. Kc5 {[%emt 0:00:02]} Bg2 $11 {[%emt 0:00:01]} 63. Rc7 {[%emt 0:00:05]} (63. Be5 Rc8+ 64. Kb4 Kf8) 63... Bf3 {[%emt 0:00:02]} 64. Be5 {[%emt 0:00:02]} Re8 {[%emt 0:00:03]} 65. Bf6 {[%emt 0:00:03]} Rb8 {[%emt 0:00:01]} 66. Rd7 {[%emt 0:00:08]} Be4 {[%emt 0:00:01]} 67. Re7 $2 {[%emt 0:00:08]} ({Lieber} 67. Be5 $18 Rc8+ 68. Kd4) 67... Bf3 $18 {[%emt 0:00:01]} 68. Kb5 {[%emt 0:00:02]} Bg2 {[%emt 0:00:02]} 69. Bd4 {[%emt 0:00:02]} Bf3 {[%emt 0:00:03]} 70. Ka6 {[%emt 0:00:03]} Ra8+ {[%emt 0:00:04]} 71. Ra7 {[%emt 0:00:01]} Rxa7+ {[%emt 0:00:02]} 72. Kxa7 {[%emt 0:00:02]} Kf8 {[%emt 0:00:01]} 73. Bc5+ {[%emt 0:00:12]} Ke8 {[%emt 0:00:01]} 74. b7 {[%emt 0:00:01]} Bxb7 {[%emt 0:00:02]} 75. Kxb7 {[%emt 0:00:00]} Kd7 {[%emt 0:00:01]} 76. Bd4 {[%emt 0:00:06]} Ke6 {[%emt 0:00:01]} 77. Kc6 {[%emt 0:00:01]} Kf5 {[%emt 0:00:00]} 78. Kd6 {[%emt 0:00:02]} Kg4 {[%emt 0:00:01]} 79. Bf2 {[%emt 0:00:00]} Kf5 {[%emt 0:00:01]} 80. Ke7 {[%emt 0:00:01]} Ke5 {[%emt 0:00:03]} 1-0

[Event "RUS-ch Blitz Women 2018"]
[Site "Sochi"]
[Date "2018.10.07"]
[Round "12"]
[White "Borisova, Ekaterina"]
[Black "Bivol, Alina"]
[Result "0-1"]
[ECO "A45"]
[WhiteElo "2256"]
[BlackElo "2403"]
[Annotator "NA"]
[PlyCount "136"]
[EventDate "2018.10.07"]
[EventType "swiss"]
[EventCountry "RUS"]
[SourceTitle "playchess.com"]
[Source "ChessBase"]
[SourceQuality "1"]
[TimeControl "180+2"]

1. d4 {[%emt 0:00:00]} Nf6 {[%emt 0:00:00]} 2. g3 {[%emt 0:00:00]} g6 {[%emt 0:00:00]} 3. Bg2 {[%emt 0:00:00]} Bg7 {[%emt 0:00:01]} 4. Nf3 {[%emt 0:00:01]} O-O {[%emt 0:00:02]} 5. O-O {[%emt 0:00:01]} d6 {[%emt 0:00:01]} 6. c4 {[%emt 0:00:01]} Nc6 {[%emt 0:00:01]} 7. Nc3 {[%emt 0:00:02]} Rb8 {[%emt 0:00:01]} 8. Qd3 {[%emt 0:00:03] E62: King's Indian: Fianchetto: 6...c6 and Panno Variation (6...Nc6) without ...a6} (8. b3 a6 9. d5 Na5 10. Bd2 c5 11. dxc6 Nxc6 12. Qc1 Bd7 13. Bh6 b5 14. Bxg7 Kxg7 15. cxb5 axb5 16. Qb2 Kg8 17. b4 Qb6 18. Rfd1 Rfc8 {½-½ (77) Inarkiev,E (2689)-Zhao,J (2604) Riadh 2017}) 8... e5 {[%emt 0:00:12]} 9. dxe5 {[%emt 0:00:01]} dxe5 {[%emt 0:00:11]} 10. Qxd8 {[%emt 0:00:02]} Rxd8 {[%emt 0:00:01]} 11. Bg5 {[%emt 0:00:00]} Be6 {[%emt 0:00:15]} 12. Nd2 {[%emt 0:00:22]} h6 {[%emt 0:00:21]} 13. Bxf6 {[%emt 0:00:02]} Rxd2 {[%emt 0:00:05]} 14. Bxg7 {[%emt 0:00:10]} Kxg7 {[%emt 0:00:01]} 15. Bxc6 {[%emt 0:00:01]} bxc6 {[%emt 0:00:01]} 16. b3 $146 {[%emt 0:00:00]} f5 {[%emt 0:00:16]} 17. Rfd1 {[%emt 0:00:05]} Rbd8 {[%emt 0:00:02]} 18. Kf1 {[%emt 0:00:18]} R8d6 {[%emt 0:00:11]} 19. Ke1 {[%emt 0:00:05]} Rc2 {[%emt 0:00:01]} 20. Rac1 {[%emt 0:00:17]} Rxc1 {[%emt 0:00:42]} 21. Rxc1 {[%emt 0:00:01]} Kf6 {[%emt 0:00:06]} 22. h4 {[%emt 0:00:08]} g5 {[%emt 0:00:03]} 23. hxg5+ {[%emt 0:00:01]} hxg5 {[%emt 0:00:00]} 24. Na4 {[%emt 0:00:03]} e4 {[%emt 0:00:10]} 25. Nc5 {[%emt 0:00:03]} Bc8 {[%emt 0:00:02]} 26. e3 {[%emt 0:00:15]} Ke5 {[%emt 0:00:04]} 27. Ke2 {[%emt 0:00:02]} f4 {[%emt 0:00:04]} 28. gxf4+ {[%emt 0:00:09]} gxf4 {[%emt 0:00:02]} 29. Rg1 {[%emt 0:00:05]} Bf5 {[%emt 0:00:24]} 30. Rg5 {[%emt 0:00:23]} fxe3 {[%emt 0:00:08]} 31. fxe3 {[%emt 0:00:03]} Kf6 {[%emt 0:00:00]} 32. Rg8 {[%emt 0:00:06]} Bg6 {[%emt 0:00:03]} 33. Rh8 {[%emt 0:00:20]} Kg5 {[%emt 0:00:02]} 34. Rg8 {[%emt 0:00:09]} Kh4 {[%emt 0:00:01]} 35. Ke1 {[%emt 0:00:32]} Kh5 {[%emt 0:00:19]} (35... Bh5 $1 $14) 36. Rg7 {[%emt 0:00:08]} a5 {[%emt 0:00:10]} 37. Rxc7 Kg5 38. Re7 {[%emt 0:00:09]} Kf6 {[%emt 0:00:06]} 39. Rc7 {[%emt 0:00:04]} Ke5 {[%emt 0:00:03]} 40. Nd7+ {[%emt 0:00:01]} Kf5 {[%emt 0:00:03]} 41. Nf8 {[%emt 0:00:03]} Bh5 {[%emt 0:00:00]} 42. Re7 {[%emt 0:00:04]} Rd1+ {[%emt 0:00:02]} 43. Kf2 {[%emt 0:00:01]} Rd2+ {[%emt 0:00:00]} 44. Kg3 {[%emt 0:00:00]} Rxa2 {[%emt 0:00:02]} 45. Rh7 {[%emt 0:00:02]} Bf3 {[%emt 0:00:02]} 46. Rf7+ {[%emt 0:00:01]} Ke5 {[%emt 0:00:01]} 47. Ng6+ {[%emt 0:00:03]} Ke6 {[%emt 0:00:02]} 48. Rc7 {[%emt 0:00:02]} Rg2+ {[%emt 0:00:01]} 49. Kf4 {[%emt 0:00:01]} Rxg6 {[%emt 0:00:04]} 50. Rxc6+ {[%emt 0:00:01]} Kf7 {[%emt 0:00:01]} 51. Rc7+ {[%emt 0:00:00]} Ke8 {[%emt 0:00:01]} 52. Ra7 {[%emt 0:00:04]} Rf6+ {[%emt 0:00:01]} 53. Ke5 {[%emt 0:00:01]} Rh6 {[%emt 0:00:01]} 54. Ra8+ {[%emt 0:00:04]} Kd7 {[%emt 0:00:02]} 55. Ra7+ {[%emt 0:00:01]} Kc8 {[%emt 0:00:00]} 56. Kd4 {[%emt 0:00:04]} Rh5 {[%emt 0:00:02]} 57. c5 {[%emt 0:00:00]} Kb8 {[%emt 0:00:05]} 58. Rxa5 Kc7 59. b4 {[%emt 0:00:04]} Bg2 {[%emt 0:00:03]} 60. b5 {[%emt 0:00:02]} Rh8 {[%emt 0:00:05]} 61. Ra7+ {[%emt 0:00:01]} Kb8 {[%emt 0:00:01]} 62. Rg7 {[%emt 0:00:03]} Bf1 {[%emt 0:00:02]} 63. b6 {[%emt 0:00:02]} Bb5 {[%emt 0:00:04]} 64. Kc3 {[%emt 0:00:03]} Bc6 {[%emt 0:00:02]} 65. Rc7 {[%emt 0:00:02]} Bd5 {[%emt 0:00:03]} 66. Kb4 {[%emt 0:00:02]} Rh1 {[%emt 0:00:02]} 67. Rd7 {[%emt 0:00:03]} Bc6 $11 {[%emt 0:00:02]} 68. Kc4 {[%emt 0:00:02]} Bxd7 {[%emt 0:00:01]} 0-1

[Event "RUS-ch Blitz Women 2018"]
[Site "Sochi"]
[Date "2018.10.07"]
[Round "12"]
[White "Kabanova, Ekaterina"]
[Black "Styazhkina, Anna"]
[Result "0-1"]
[ECO "A20"]
[WhiteElo "2082"]
[BlackElo "2268"]
[Annotator "ChessBase"]
[PlyCount "88"]
[EventDate "2018.10.07"]
[EventType "swiss"]
[EventCountry "RUS"]
[SourceTitle "playchess.com"]
[Source "ChessBase"]
[SourceQuality "1"]
[TimeControl "180+2"]

1. c4 {[%emt 0:00:00]} e5 {[%emt 0:00:01]} 2. e3 {[%emt 0:00:00]} Nf6 {[%emt 0:00:10]} 3. a3 {[%emt 0:00:01]} d5 {[%emt 0:00:09]} 4. cxd5 {[%emt 0:00:01]} Nxd5 {[%emt 0:00:01]} 5. Qc2 {[%emt 0:00:01]} Be7 {[%emt 0:00:09]} 6. Nf3 {[%emt 0:00:01]} f6 {[%emt 0:00:07]} 7. Bc4 {[%emt 0:00:03]} c6 {[%emt 0:00:15]} 8. Qb3 {[%emt 0:00:22]} b5 {[%emt 0:00:23]} 9. Bd3 {[%emt 0:00:03]} Be6 {[%emt 0:00:05]} 10. Qc2 {[%emt 0:00:01]} g6 {[%emt 0:00:26]} 11. h4 {[%emt 0:00:02]} Bf7 {[%emt 0:00:37]} 12. h5 {[%emt 0:00:01]} Rg8 {[%emt 0:00:05]} 13. hxg6 {[%emt 0:00:06]} hxg6 {[%emt 0:00:01]} 14. b4 {[%emt 0:00:14]} Nd7 {[%emt 0:00:18]} 15. Bb2 {[%emt 0:00:01]} Rc8 {[%emt 0:00:04]} 16. Rh6 {[%emt 0:00:04]} g5 {[%emt 0:00:04]} 17. Bg6 {[%emt 0:00:09]} Bxg6 {[%emt 0:00:15]} 18. Rxg6 {[%emt 0:00:01]} Kf7 {[%emt 0:00:01]} 19. Rh6 {[%emt 0:00:21]} Qf8 {[%emt 0:00:02]} 20. Rh7+ {[%emt 0:00:35]} Rg7 {[%emt 0:00:04]} 21. Nc3 {[%emt 0:00:02]} N7b6 {[%emt 0:00:05]} 22. Qf5 {[%emt 0:00:08]} Rxh7 {[%emt 0:00:05]} 23. Nxg5+ {[%emt 0:00:01]} Ke8 {[%emt 0:00:07]} 24. Nxh7 {[%emt 0:00:02]} Qg7 {[%emt 0:00:03]} 25. Ne4 {[%emt 0:00:12]} Nd7 {[%emt 0:00:04]} 26. Ke2 {[%emt 0:00:25]} Kd8 {[%emt 0:00:02]} 27. Rc1 {[%emt 0:00:17]} N5b6 {[%emt 0:00:07]} 28. d4 {[%emt 0:00:21]} Nc4 {[%emt 0:00:01]} 29. Ba1 {[%emt 0:00:02]} exd4 {[%emt 0:00:02]} 30. Bxd4 {[%emt 0:00:01]} Qf7 {[%emt 0:00:03]} 31. Bc5 {[%emt 0:00:04]} Bxc5 {[%emt 0:00:01]} 32. bxc5 {[%emt 0:00:02]} Qd5 {[%emt 0:00:02]} 33. Qg6 {[%emt 0:00:03]} Kc7 {[%emt 0:00:02]} 34. Qg3+ {[%emt 0:00:01]} Kb7 {[%emt 0:00:02]} 35. Rd1 {[%emt 0:00:01]} Qe6 {[%emt 0:00:02]} 36. Nd6+ {[%emt 0:00:02]} Nxd6 {[%emt 0:00:02]} 37. Rxd6 {[%emt 0:00:01]} Qa2+ {[%emt 0:00:01]} 38. Kf3 {[%emt 0:00:01]} Ne5+ {[%emt 0:00:01]} 39. Kf4 {[%emt 0:00:02]} Rg8 {[%emt 0:00:02]} 40. Qh3 {[%emt 0:00:05]} Qxf2+ {[%emt 0:00:02]} 41. Ke4 {[%emt 0:00:02]} Rg4+ {[%emt 0:00:01]} 42. Qxg4 Nxg4 {[%emt 0:00:01]} 43. Rd7+ {[%emt 0:00:05]} Kc8 {[%emt 0:00:01]} 44. Rd4 {[%emt 0:00:03]} Qxe3+ {[%emt 0:00:02]} 0-1

[Event "RUS-ch Blitz Women 2018"]
[Site "Sochi"]
[Date "2018.10.07"]
[Round "13"]
[White "Kashlinskaya, Alina"]
[Black "Vasilevich, Irina"]
[Result "1-0"]
[ECO "A40"]
[WhiteElo "2447"]
[BlackElo "2160"]
[Annotator "NA"]
[PlyCount "57"]
[EventDate "2018.10.07"]
[EventType "swiss"]
[EventCountry "RUS"]
[SourceTitle "playchess.com"]
[Source "ChessBase"]
[SourceQuality "1"]
[TimeControl "180+2"]

1. d4 {[%emt 0:00:00]} e6 {[%emt 0:00:00]} 2. c4 {[%emt 0:00:00]} b6 {[%emt 0:00:01]} 3. e4 {[%emt 0:00:04]} Bb7 {[%emt 0:00:01]} 4. Bd3 {[%emt 0:00:02]} d6 {[%emt 0:00:02]} 5. Nc3 {[%emt 0:00:02]} Nd7 {[%emt 0:00:01]} 6. Nf3 {[%emt 0:00:05]} Be7 {[%emt 0:00:01]} 7. O-O {[%emt 0:00:01]} g5 {[%emt 0:00:01]} 8. Be3 {[%emt 0:00:15]} g4 {[%emt 0:00:03]} 9. Nd2 {[%emt 0:00:01]} h5 {[%emt 0:00:01]} 10. f4 {[%emt 0:00:03]} gxf3 {[%emt 0:00:02]} 11. Nxf3 {[%emt 0:00:15]} Nh6 {[%emt 0:00:04]} 12. h3 {[%emt 0:00:06]} a6 {[%emt 0:00:18]} 13. Qd2 {[%emt 0:00:01]} Ng8 {[%emt 0:00:10]} 14. e5 {[%emt 0:00:12]} dxe5 {[%emt 0:00:06]} 15. Nxe5 {[%emt 0:00:00]} Nxe5 {[%emt 0:00:06]} 16. dxe5 {[%emt 0:00:01]} Bc5 {[%emt 0:00:11]} 17. Rad1 {[%emt 0:00:12]} Qe7 {[%emt 0:00:52]} 18. Be4 {[%emt 0:00:06]} Bxe4 {[%emt 0:00:40]} 19. Nxe4 {[%emt 0:00:01]} Bxe3+ {[%emt 0:00:16]} 20. Qxe3 {[%emt 0:00:01]} Rd8 {[%emt 0:00:03]} 21. Rxd8+ {[%emt 0:00:21]} Qxd8 {[%emt 0:00:01]} 22. Kh1 {[%emt 0:00:14]} h4 {[%emt 0:00:08]} 23. Qf3 {[%emt 0:00:13]} Nh6 {[%emt 0:00:20]} 24. Rd1 {[%emt 0:00:05]} Qe7 {[%emt 0:00:01]} 25. Nf6+ {[%emt 0:00:08]} Kf8 {[%emt 0:00:01]} 26. Rd7 {[%emt 0:00:02]} Qb4 {[%emt 0:00:04]} 27. Rd8+ {[%emt 0:00:18]} Kg7 {[%emt 0:00:01]} 28. Nh5+ {[%emt 0:00:02]} Kh7 {[%emt 0:00:04]} 29. Rxh8+ {[%emt 0:00:03]} 1-0

[Event "RUS-ch Blitz Women 2018"]
[Site "Sochi"]
[Date "2018.10.07"]
[Round "13"]
[White "Bodnaruk, Anastasia"]
[Black "Guseva, Marina"]
[Result "1-0"]
[ECO "B12"]
[WhiteElo "2423"]
[BlackElo "2292"]
[Annotator "NA"]
[PlyCount "217"]
[EventDate "2018.10.07"]
[EventType "swiss"]
[EventCountry "RUS"]
[SourceTitle "playchess.com"]
[Source "ChessBase"]
[SourceQuality "1"]
[TimeControl "180+2"]

1. e4 {[%emt 0:00:00]} c6 {[%emt 0:00:00]} 2. d4 {[%emt 0:00:00]} d5 {[%emt 0:00:00]} 3. e5 {[%emt 0:00:01]} Bf5 {[%emt 0:00:01]} 4. g4 {[%emt 0:00:03]} Be4 {[%emt 0:00:01]} 5. f3 {[%emt 0:00:01]} Bg6 {[%emt 0:00:01]} 6. e6 {[%emt 0:00:20]} Qd6 {[%emt 0:00:01]} 7. exf7+ {[%emt 0:00:03]} Bxf7 {[%emt 0:00:01]} 8. Nh3 {[%emt 0:00:12]} Nd7 {[%emt 0:00:12]} 9. c3 {[%emt 0:00:17]} e5 {[%emt 0:00:04]} 10. dxe5 {[%emt 0:00:08]} Qxe5+ {[%emt 0:00:03]} 11. Qe2 {[%emt 0:00:04]} Qxe2+ 12. Bxe2 {[%emt 0:00:01]} Bd6 {[%emt 0:00:18]} 13. Bf4 {[%emt 0:00:09]} Bxf4 {[%emt 0:00:03]} 14. Nxf4 {[%emt 0:00:01]} Ngf6 {[%emt 0:00:01]} 15. Nd2 {[%emt 0:00:06]} g5 {[%emt 0:00:03]} 16. Nd3 {[%emt 0:00:13]} h5 {[%emt 0:00:02]} 17. gxh5 {[%emt 0:00:03]} Nxh5 {[%emt 0:00:08]} 18. O-O-O {[%emt 0:00:02]} O-O-O {[%emt 0:00:02]} 19. Rhg1 {[%emt 0:00:08]} Nf4 {[%emt 0:00:03]} 20. Nxf4 {[%emt 0:00:05]} gxf4 {[%emt 0:00:01]} 21. Nf1 {[%emt 0:00:14]} Rde8 {[%emt 0:00:07]} 22. Bd3 {[%emt 0:00:07]} Ne5 {[%emt 0:00:02]} 23. Be2 {[%emt 0:00:10]} Be6 {[%emt 0:00:08]} 24. Rd4 {[%emt 0:00:12]} Bh3 {[%emt 0:00:16]} 25. Nd2 {[%emt 0:00:17]} Bd7 {[%emt 0:00:32]} 26. Rg2 {[%emt 0:00:15]} Rh4 {[%emt 0:00:11]} 27. b4 {[%emt 0:00:07]} Reh8 {[%emt 0:00:04]} 28. Kd1 {[%emt 0:00:07]} Rxh2 {[%emt 0:00:37]} 29. Rxh2 {[%emt 0:00:02]} Rxh2 {[%emt 0:00:01]} 30. Rxf4 {[%emt 0:00:03]} Rh1+ {[%emt 0:00:02]} 31. Kc2 {[%emt 0:00:08]} Rh2 {[%emt 0:00:01]} 32. Kd1 {[%emt 0:00:04]} Rh1+ 33. Kc2 Rh2 {[%emt 0:00:23]} 34. Kd1 {[%emt 0:00:01]} Rh1+ {[%emt 0:00:05]} 35. Kc2 {[%emt 0:00:01]} Kc7 {[%emt 0:00:06]} 36. a4 {[%emt 0:00:04]} Rh2 {[%emt 0:00:04]} 37. Kd1 {[%emt 0:00:01]} c5 {[%emt 0:00:01]} 38. bxc5 {[%emt 0:00:05]} Bxa4+ {[%emt 0:00:02]} 39. Rxa4 {[%emt 0:00:01]} Rh1+ {[%emt 0:00:06]} 40. Kc2 {[%emt 0:00:05]} Rh2 {[%emt 0:00:01]} 41. Kd1 {[%emt 0:00:00]} Rh1+ {[%emt 0:00:01]} 42. Kc2 {[%emt 0:00:01]} Rh2 {[%emt 0:00:01]} 43. Kd1 {[%emt 0:00:04]} Rh1+ {[%emt 0:00:01]} 44. Nf1 {[%emt 0:00:04]} Nxf3 {[%emt 0:00:04]} 45. Bxf3 {[%emt 0:00:08]} Rxf1+ 46. Ke2 Rc1 {[%emt 0:00:02]} 47. Kd2 {[%emt 0:00:03]} Rf1 {[%emt 0:00:03]} 48. Bxd5 {[%emt 0:00:03]} Rf5 {[%emt 0:00:02]} 49. c4 {[%emt 0:00:02]} b5 {[%emt 0:00:09]} 50. cxb6+ axb6 {[%emt 0:00:02]} 51. Ra7+ {[%emt 0:00:11]} Kd6 {[%emt 0:00:02]} 52. Rb7 {[%emt 0:00:01]} Kc5 {[%emt 0:00:02]} 53. Rb8 {[%emt 0:00:02]} Rh5 {[%emt 0:00:05]} 54. Kc2 {[%emt 0:00:02]} Rh3 {[%emt 0:00:01]} 55. Rc8+ {[%emt 0:00:02]} Kb4 {[%emt 0:00:02]} 56. Rc6 {[%emt 0:00:02]} Ka5 {[%emt 0:00:02]} 57. Kb2 {[%emt 0:00:02]} Rg3 {[%emt 0:00:02]} 58. Rc8 {[%emt 0:00:01]} Kb4 {[%emt 0:00:01]} 59. Be6 {[%emt 0:00:02]} Re3 {[%emt 0:00:02]} 60. Bd7 {[%emt 0:00:02]} Re2+ {[%emt 0:00:02]} 61. Kc1 {[%emt 0:00:00]} Kc3 {[%emt 0:00:01]} 62. Ba4 {[%emt 0:00:05]} Re1+ {[%emt 0:00:03]} 63. Bd1 {[%emt 0:00:01]} Re4 {[%emt 0:00:02]} 64. c5 {[%emt 0:00:03]} bxc5 {[%emt 0:00:01]} 65. Rxc5+ {[%emt 0:00:00]} Kb4 {[%emt 0:00:02]} 66. Rd5 {[%emt 0:00:03]} Kc3 {[%emt 0:00:02]} 67. Rd8 {[%emt 0:00:02]} Rd4 {[%emt 0:00:02]} 68. Rc8+ {[%emt 0:00:02]} Kb4 {[%emt 0:00:01]} 69. Bc2 {[%emt 0:00:01]} Rc4 {[%emt 0:00:03]} 70. Rb8+ {[%emt 0:00:01]} Kc3 {[%emt 0:00:01]} 71. Rb3+ {[%emt 0:00:01]} Kd4 {[%emt 0:00:03]} 72. Rh3 {[%emt 0:00:02]} Rc3 {[%emt 0:00:01]} 73. Rh4+ {[%emt 0:00:01]} Kc5 {[%emt 0:00:01]} 74. Kd2 {[%emt 0:00:01]} Rg3 {[%emt 0:00:02]} 75. Bd3 {[%emt 0:00:01]} Rf3 {[%emt 0:00:02]} 76. Kc3 {[%emt 0:00:00]} Rg3 {[%emt 0:00:02]} 77. Rh5+ {[%emt 0:00:01]} Kd6 {[%emt 0:00:01]} 78. Kd4 {[%emt 0:00:01]} Rg4+ {[%emt 0:00:01]} 79. Be4 {[%emt 0:00:00]} Rg1 {[%emt 0:00:02]} 80. Rh6+ {[%emt 0:00:01]} Kc7 {[%emt 0:00:02]} 81. Rh7+ {[%emt 0:00:04]} Kd6 {[%emt 0:00:02]} 82. Rh6+ {[%emt 0:00:02]} Kc7 {[%emt 0:00:02]} 83. Bf3 {[%emt 0:00:04]} Rf1 {[%emt 0:00:05]} 84. Bd5 {[%emt 0:00:09]} Rd1+ 85. Kc5 Rc1+ {[%emt 0:00:04]} 86. Bc4 {[%emt 0:00:01]} Rd1 {[%emt 0:00:04]} 87. Ra6 {[%emt 0:00:02]} Rb1 {[%emt 0:00:03]} 88. Ra7+ {[%emt 0:00:03]} Rb7 {[%emt 0:00:02]} 89. Ra8 {[%emt 0:00:00]} Rb8 {[%emt 0:00:03]} 90. Ra6 {[%emt 0:00:03]} Rb1 {[%emt 0:00:06]} 91. Rf6 {[%emt 0:00:06]} Rd1 {[%emt 0:00:01]} 92. Bb3 {[%emt 0:00:04]} Rc1+ {[%emt 0:00:03]} 93. Bc4 {[%emt 0:00:00]} Rd1 {[%emt 0:00:01]} 94. Rg6 {[%emt 0:00:03]} Rd2 {[%emt 0:00:02]} 95. Bb3 {[%emt 0:00:02]} Rd3 {[%emt 0:00:02]} 96. Bc4 {[%emt 0:00:03]} Rd1 {[%emt 0:00:01]} 97. Rc6+ {[%emt 0:00:01]} Kd7 {[%emt 0:00:02]} 98. Rf6 {[%emt 0:00:01]} Re1 {[%emt 0:00:05]} 99. Rf7+ {[%emt 0:00:03]} Re7 {[%emt 0:00:03]} 100. Rf5 {[%emt 0:00:03]} Re1 {[%emt 0:00:03]} 101. Rf6 {[%emt 0:00:02]} Re5+ {[%emt 0:00:02]} 102. Bd5 {[%emt 0:00:01]} Re1 {[%emt 0:00:02]} 103. Rf7+ {[%emt 0:00:01]} Re7 {[%emt 0:00:02]} 104. Rf8 {[%emt 0:00:01]} Re1 {[%emt 0:00:03]} 105. Bc6+ {[%emt 0:00:01]} Kc7 {[%emt 0:00:02]} 106. Rf7+ {[%emt 0:00:01]} Kd8 {[%emt 0:00:02]} 107. Kd6 {[%emt 0:00:04]} Rd1+ {[%emt 0:00:05]} 108. Bd5 {[%emt 0:00:00]} Ke8 {[%emt 0:00:04]} 109. Rg7 {[%emt 0:00:06] Kf7} 1-0

[Event "RUS-ch Blitz Women 2018"]
[Site "Sochi"]
[Date "2018.10.07"]
[Round "13"]
[White "Shuvalova, Polina"]
[Black "Ivanova, Karina"]
[Result "1-0"]
[ECO "C41"]
[WhiteElo "2421"]
[BlackElo "2124"]
[Annotator "NA"]
[PlyCount "55"]
[EventDate "2018.10.07"]
[EventType "swiss"]
[EventCountry "RUS"]
[SourceTitle "playchess.com"]
[Source "ChessBase"]
[SourceQuality "1"]
[TimeControl "180+2"]

1. e4 {[%emt 0:00:00]} d6 {[%emt 0:00:05]} 2. d4 {[%emt 0:00:00]} Nf6 {[%emt 0:00:01]} 3. Nc3 {[%emt 0:00:02]} e5 {[%emt 0:00:01]} 4. Nf3 {[%emt 0:00:02]} Nbd7 {[%emt 0:00:03]} 5. Bc4 {[%emt 0:00:01]} Be7 {[%emt 0:00:01]} 6. O-O {[%emt 0:00:02]} O-O {[%emt 0:00:03]} 7. Re1 {[%emt 0:00:07]} c6 {[%emt 0:00:02]} 8. a4 {[%emt 0:00:01]} b6 {[%emt 0:00:02]} 9. Ba2 {[%emt 0:00:10]} a6 {[%emt 0:00:02]} 10. h3 {[%emt 0:00:06]} Bb7 {[%emt 0:00:02]} 11. dxe5 {[%emt 0:00:03]} dxe5 {[%emt 0:00:09]} 12. Nh4 {[%emt 0:00:07]} Qc7 {[%emt 0:01:00]} 13. Nf5 {[%emt 0:00:02]} Bb4 {[%emt 0:00:02]} 14. Qf3 {[%emt 0:00:08]} Kh8 {[%emt 0:00:34]} 15. Bg5 {[%emt 0:00:15]} Ng8 {[%emt 0:00:27]} 16. h4 {[%emt 0:00:21]} f6 {[%emt 0:00:01]} 17. Be3 {[%emt 0:00:05]} Ne7 {[%emt 0:00:02]} 18. Nxe7 {[%emt 0:00:22]} Bxe7 {[%emt 0:00:03]} 19. h5 {[%emt 0:00:01]} Nc5 {[%emt 0:00:25]} 20. Rad1 {[%emt 0:00:12]} Bc8 {[%emt 0:00:03]} 21. h6 {[%emt 0:00:04]} g6 {[%emt 0:00:02]} 22. Qe2 {[%emt 0:00:19]} a5 {[%emt 0:00:05]} 23. Rd2 {[%emt 0:00:03]} Ne6 {[%emt 0:00:10]} 24. Red1 {[%emt 0:00:02]} Nf4 {[%emt 0:00:02]} 25. Qf3 {[%emt 0:00:03]} g5 {[%emt 0:00:03]} 26. Ne2 {[%emt 0:00:09]} Be6 {[%emt 0:00:08]} 27. Bxe6 {[%emt 0:00:09]} Nxe6 {[%emt 0:00:03]} 28. Rd7 {[%emt 0:00:02]} 1-0